bitfinex/quotes_BTCUSD_20250619
["timestamp","ask_amount","ask_price","bid_price","bid_amount"]
[1750317307723,0.42057053,104930.0,104920.0,0.74977447]
[1750317308227,0.41104074,104930.0,104920.0,0.74977447]
[1750317308438,0.41162991,104930.0,104920.0,0.74977447]
[1750317308651,0.42057063,104930.0,104920.0,0.74977447]
[1750317309973,0.42057053,104930.0,104920.0,0.74977447]
[1750317311613,0.43010051,104930.0,104920.0,0.74977447]
[1750317313343,0.42057053,104930.0,104920.0,0.74977447]
[1750317313550,0.43010051,104930.0,104920.0,0.74977447]
[1750317314225,0.42057053,104930.0,104920.0,0.74977447]
[1750317314427,0.4205702,104930.0,104920.0,0.74977447]
[1750317314632,0.43010009,104930.0,104920.0,0.74977447]
[1750317316654,0.4205702,104930.0,104920.0,0.74977447]
[1750317316895,0.0508901,104930.0,104920.0,0.74977447]
[1750317317117,0.39767962,104930.0,104920.0,0.74977447]
[1750317317354,0.4205702,104930.0,104920.0,0.74977447]
[1750317320118,0.42057036,104930.0,104920.0,0.74977447]
[1750317321813,0.41104075,104930.0,104920.0,0.74977447]
[1750317322401,0.42057054,104930.0,104920.0,0.74977447]
[1750317322807,0.18605817,104930.0,104920.0,0.74977447]
[1750317323379,0.18605799,104930.0,104920.0,0.74977447]
[1750317323595,0.19558778,104930.0,104920.0,0.74973447]
[1750317323801,0.19558769,104930.0,104920.0,0.74973447]
[1750317324229,0.20511758,104930.0,104920.0,0.74973447]
[1750317324511,0.20511721,104930.0,104920.0,0.74973447]
[1750317325582,0.214647,104930.0,104920.0,0.74973447]
[1750317325957,0.19617648,104930.0,104920.0,0.74973447]
[1750317326175,0.20511793,104930.0,104920.0,0.74973447]
[1750317327097,0.19558823,104930.0,104920.0,0.74973447]
[1750317327555,0.20511802,104930.0,104920.0,0.74973447]
[1750317327784,0.19558823,104930.0,104920.0,0.74973447]
[1750317328012,0.20511802,104930.0,104920.0,0.74973447]
[1750317328745,0.20570646,104930.0,104920.0,0.74973447]
[1750317328951,0.1955894,104930.0,104920.0,0.74973447]
[1750317329172,0.20511919,104930.0,104920.0,0.74973447]
[1750317329385,0.21464917,104930.0,104920.0,0.74973447]
[1750317329621,0.20511919,104930.0,104920.0,0.74973447]
[1750317329845,0.05089233,104930.0,104920.0,0.74973447]
[1750317330056,0.38815206,104930.0,104920.0,0.74973447]
[1750317330281,0.41104264,104930.0,104920.0,0.74973447]
[1750317330505,0.05089233,104930.0,104920.0,0.74973447]
[1750317330765,0.00894262,104930.0,104920.0,1.20612654]
[1750317330992,0.75162447,104950.0,104940.0,0.21917175]
[1750317331212,0.75939365,104950.0,104940.0,0.43693175]
[1750317331441,0.05924334,104950.0,104940.0,0.43693175]
[1750317331671,0.01846923,104950.0,104940.0,0.43693175]
[1750317331898,0.00894171,104950.0,104940.0,0.82467351]
[1750317332140,0.3943037,104960.0,104950.0,0.28435087]
[1750317332380,0.43565385,104960.0,104950.0,0.43831087]
[1750317332620,0.41276318,104960.0,104950.0,0.43831087]
[1750317332885,0.43561305,104960.0,104950.0,0.43831087]
[1750317333369,0.42229007,104960.0,104950.0,0.43831087]
[1750317334474,0.4133573,104960.0,104950.0,0.43831087]
[1750317334720,0.42227652,104960.0,104950.0,0.44031087]
[1750317335375,0.43180359,104960.0,104950.0,0.44031087]
[1750317335607,0.42227652,104960.0,104950.0,0.44031087]
[1750317337005,0.4318035,104960.0,104950.0,0.44031087]
[1750317337227,0.42288428,104960.0,104950.0,0.44031087]
[1750317337550,0.43241135,104960.0,104950.0,0.44031087]
[1750317337769,0.43241135,104960.0,104950.0,0.73181087]
[1750317338024,0.79256166,104960.0,104950.0,0.73181087]
[1750317339029,0.78303459,104960.0,104950.0,0.73181087]
[1750317339515,0.06273397,104960.0,104950.0,0.73181087]
[1750317339743,0.78303459,104960.0,104950.0,0.73181087]
[1750317340605,0.79256166,104960.0,104950.0,0.73181087]
[1750317341720,0.78303504,104960.0,104950.0,0.73181087]
[1750317341980,0.79256229,104960.0,104950.0,0.73181087]
[1750317342441,0.80146672,104960.0,104950.0,0.73181087]
[1750317343390,0.79256229,104960.0,104950.0,0.73181087]
[1750317347389,0.9735849,104960.0,104950.0,0.73177132]
[1750317347601,0.9735849,104960.0,104950.0,0.74129921]
[1750317347818,0.96405792,104960.0,104950.0,0.73177132]
[1750317348036,0.96405792,104960.0,104950.0,0.74129921]
[1750317348253,0.96405792,104960.0,104950.0,0.75082701]
[1750317349707,0.2437573,104960.0,104950.0,0.45932701]
[1750317349909,0.96405792,104960.0,104950.0,0.45932701]
[1750317353822,0.97296591,104960.0,104950.0,0.45932701]
[1750317355655,0.97296591,104960.0,104950.0,0.45932647]
[1750317355891,0.97296591,104960.0,104950.0,0.44979876]
[1750317356378,0.97296591,104960.0,104950.0,0.43074307]
[1750317356732,0.96343884,104960.0,104950.0,0.43074307]
[1750317358279,0.95391159,104960.0,104950.0,0.42121509]
[1750317358483,0.95391159,104960.0,104950.0,0.22112]
[1750317358712,0.94438416,104960.0,104950.0,0.43074334]
[1750317358915,0.94438416,104960.0,104950.0,0.44979939]
[1750317360842,0.94440432,104960.0,104950.0,0.44979939]
[1750317361373,0.96726456,104960.0,104950.0,0.44979939]
[1750317361849,0.96726456,104960.0,104950.0,0.45932728]
[1750317364706,1.30726456,104960.0,104950.0,0.45932728]
[1750317365129,1.31679181,104960.0,104950.0,0.45932683]
[1750317365351,0.41546939,104960.0,104950.0,0.45932638]
[1750317365592,1.14529735,104960.0,104950.0,0.45932638]
[1750317366097,1.15482478,104960.0,104950.0,0.45932638]
[1750317366326,0.43452416,104960.0,104950.0,0.44979867]
[1750317366548,1.15483475,104960.0,104950.0,0.45932638]
[1750317367105,1.17271145,104960.0,104950.0,0.45932638]
[1750317368231,1.17271145,104960.0,104950.0,0.44979867]
[1750317368432,1.36326023,104960.0,104950.0,0.44979867]
[1750317368988,1.36326023,104960.0,104950.0,0.44027087]
[1750317369247,1.35373325,104960.0,104950.0,0.44027087]
[1750317369451,0.63343263,104960.0,104950.0,0.44027087]
[1750317369666,1.35373325,104960.0,104950.0,0.44027087]
[1750317370618,1.35373389,104960.0,104950.0,0.44027087]
[1750317371547,1.35373389,104960.0,104950.0,0.43074298]
[1750317372037,1.34420664,104960.0,104950.0,0.43074298]
[1750317372315,1.32515262,104960.0,104950.0,0.0672]
[1750317372540,1.32515262,104960.0,104950.0,0.18874]
[1750317372990,1.35372792,104960.0,104950.0,0.18874]
[1750317373209,1.35372792,104960.0,104950.0,0.0347]
[1750317373429,1.35372792,104960.0,104950.0,0.0327]
[1750317374894,1.35372792,104960.0,104950.0,0.0656]
[1750317375112,1.35372099,104960.0,104950.0,0.0656]
[1750317375999,0.53056693,104950.0,104940.0,0.42674231]
[1750317376214,0.9415734,104950.0,104940.0,0.42674231]
[1750317376905,0.9511012,104950.0,104940.0,0.42674231]
[1750317377121,0.94156692,104950.0,104940.0,0.42674231]
[1750317378063,0.93203885,104950.0,104940.0,0.41721342]
[1750317378275,0.93203885,104950.0,104940.0,0.4267424]
[1750317378737,0.93203885,104950.0,104940.0,0.4277424]
[1750317378948,0.93203885,104950.0,104940.0,0.4287424]
[1750317379417,0.92310582,104950.0,104940.0,0.4287424]
[1750317379641,0.93203757,104950.0,104940.0,0.4287424]
[1750317380763,0.93203693,104950.0,104940.0,0.4287424]
[1750317381211,0.93203693,104950.0,104940.0,0.43827129]
[1750317383529,0.9320364,104950.0,104940.0,0.43827129]
[1750317384262,0.9320364,104950.0,104940.0,0.41921342]
[1750317384717,0.9320364,104950.0,104940.0,0.42874249]
[1750317385400,0.9320364,104950.0,104940.0,0.43827147]
[1750317385864,0.92250806,104950.0,104940.0,0.41913342]
[1750317386082,0.92250806,104950.0,104940.0,0.40960426]
[1750317386761,0.92250806,104950.0,104940.0,0.41913351]
[1750317388034,0.92250806,104950.0,104940.0,0.21902]
[1750317388522,0.92250806,104950.0,104940.0,0.21918]
[1750317389427,1.37880759,104950.0,104940.0,0.0651]
[1750317389639,1.28265837,104950.0,104940.0,0.002]
[1750317389862,1.30051923,104950.0,104940.0,0.002]
[1750317390083,1.32909453,104950.0,104940.0,0.002]
[1750317390757,0.60879391,104950.0,104940.0,0.002]
[1750317390974,1.32909453,104950.0,104940.0,0.0673]
[1750317391694,1.42524375,104950.0,104940.0,0.0653]
[1750317391948,1.32909453,104950.0,104940.0,0.0653]
[1750317395192,1.32909453,104950.0,104940.0,0.0326]
[1750317397576,1.32908655,104950.0,104940.0,0.0637]
[1750317400501,1.32908248,104950.0,104940.0,0.0637]
[1750317400723,1.4252317,104950.0,104940.0,0.0637]
[1750317402333,1.41630519,104950.0,104940.0,0.0637]
[1750317403039,1.39845231,104950.0,104940.0,0.0637]
[1750317410583,0.53060096,104940.0,104930.0,0.0627]
[1750317410864,1.27376182,104940.0,104930.0,0.0627]
[1750317411072,1.13251309,104940.0,104930.0,0.0627]
[1750317411284,1.32311405,104940.0,104930.0,0.0627]
[1750317411951,1.32311405,104940.0,104930.0,0.0637]
[1750317412169,1.32311405,104940.0,104930.0,0.0647]
[1750317413760,6.88726436,104940.0,104930.0,0.002]
[1750317414031,0.22876585,104910.0,104900.0,0.57796155]
[1750317414254,0.58891616,104910.0,104900.0,0.83777592]
[1750317414487,0.56985357,104910.0,104900.0,0.0001]
[1750317415857,0.56985357,104910.0,104900.0,0.0011]
[1750317416323,0.56985357,104910.0,104900.0,0.0021]
[1750317416987,0.56985357,104910.0,104900.0,0.0652]
[1750317420758,0.56985357,104910.0,104900.0,0.07473288]
[1750317420986,0.56985357,104910.0,104900.0,0.0652]
[1750317421694,1.3661531,104910.0,104900.0,0.0652]
[1750317422150,1.29282163,104910.0,104900.0,0.0652]
[1750317422603,1.27000388,104910.0,104900.0,0.0652]
[1750317424054,1.29281103,104910.0,104900.0,0.0652]
[1750317424507,1.27000388,104910.0,104900.0,0.0652]
[1750317427275,1.2928028,104910.0,104900.0,0.0652]
[1750317427492,6.43895202,104910.0,104900.0,0.0652]
[1750317429087,6.4478576,104910.0,104900.0,0.0652]
[1750317429368,6.4478576,104910.0,104900.0,0.0642]
[1750317429682,6.4488576,104910.0,104900.0,0.0642]
[1750317430005,6.4488576,104910.0,104900.0,0.0632]
[1750317430459,6.44095202,104910.0,104900.0,0.0632]
[1750317432199,6.44985527,104910.0,104900.0,0.0632]
[1750317432424,6.44095202,104910.0,104900.0,0.0632]
[1750317432869,6.44985559,104910.0,104900.0,0.0315]
[1750317433395,6.44985559,104910.0,104900.0,0.0001]
[1750317433619,6.73203735,104910.0,104900.0,0.0001]
[1750317433853,6.78685416,104910.0,104900.0,0.0001]
[1750317435308,7.14700447,104910.0,104900.0,0.0001]
[1750317435532,7.18510488,104910.0,104900.0,0.0001]
[1750317436643,7.18510579,104910.0,104900.0,0.0001]
[1750317437056,7.18410579,104910.0,104900.0,0.0001]
[1750317437257,7.18610579,104910.0,104900.0,0.0001]
[1750317437686,7.18310579,104910.0,104900.0,0.0001]
[1750317437897,7.21375679,104910.0,104900.0,0.0001]
[1750317438127,6.85560648,104910.0,104900.0,0.0001]
[1750317438334,6.84390648,104910.0,104900.0,0.0001]
[1750317438591,6.81333118,104910.0,104900.0,0.0001]
[1750317439028,6.84483876,104910.0,104900.0,0.0001]
[1750317439489,6.81633118,104910.0,104900.0,0.0001]
[1750317440597,6.1595508,104910.0,104900.0,0.0652]
[1750317440857,6.21896144,104910.0,104900.0,0.0652]
[1750317441723,6.57923175,104910.0,104900.0,0.0652]
[1750317442432,6.57423175,104910.0,104900.0,0.0652]
[1750317442859,6.57453951,104910.0,104900.0,0.0652]
[1750317443079,6.67068873,104910.0,104900.0,0.0652]
[1750317443949,6.67268873,104910.0,104900.0,0.0652]
[1750317444382,6.71278914,104910.0,104900.0,0.0652]
[1750317444633,6.8090309,104910.0,104900.0,0.0652]
[1750317445121,6.80905052,104910.0,104900.0,0.0652]
[1750317445565,6.61505052,104910.0,104900.0,0.0652]
[1750317445776,6.80909052,104910.0,104900.0,0.0652]
[1750317448273,6.43793304,104910.0,104900.0,0.0652]
[1750317448485,6.62857263,104910.0,104900.0,0.0652]
[1750317450952,6.6285788,104910.0,104900.0,0.0652]
[1750317452601,6.6285788,104910.0,104900.0,0.0001]
[1750317453059,6.6285788,104910.0,104900.0,0.0327]
[1750317453201,6.72472802,104910.0,104900.0,0.0327]
[1750317454473,6.72472802,104910.0,104900.0,0.0001]
[1750317455778,6.72472802,104910.0,104900.0,0.0327]
[1750317456211,6.6285788,104910.0,104900.0,0.0327]
[1750317456672,6.62858299,104910.0,104900.0,0.0327]
[1750317457312,6.62858299,104910.0,104900.0,0.0627]
[1750317458432,6.63815959,104910.0,104900.0,0.0627]
[1750317458886,6.63879959,104910.0,104900.0,0.0627]
[1750317459544,6.73494881,104910.0,104900.0,0.0627]
[1750317461810,6.67404948,104910.0,104900.0,0.0627]
[1750317462615,6.57790026,104910.0,104900.0,0.0627]
[1750317463071,6.57796012,104910.0,104900.0,0.0627]
[1750317464577,6.57796347,104910.0,104900.0,0.0627]
[1750317465499,6.57796381,104910.0,104900.0,0.0627]
[1750317466413,6.57796374,104910.0,104900.0,0.0627]
[1750317468219,6.57796571,104910.0,104900.0,0.0627]
[1750317469236,6.569025,104910.0,104900.0,0.0627]
[1750317469483,6.57796867,104910.0,104900.0,0.0627]
[1750317470437,6.38328867,104910.0,104900.0,0.0627]
[1750317470644,6.57804867,104910.0,104900.0,0.0627]
[1750317472590,5.70234043,104910.0,104900.0,0.0627]
[1750317472789,6.38328867,104910.0,104900.0,0.0627]
[1750317473060,6.57800867,104910.0,104900.0,0.0627]
[1750317473474,6.60088974,104910.0,104900.0,0.0627]
[1750317473810,6.63902487,104910.0,104900.0,0.0627]
[1750317475390,6.44430487,104910.0,104900.0,0.0627]
[1750317475623,6.63902487,104910.0,104900.0,0.0627]
[1750317475831,6.63898487,104910.0,104900.0,0.0627]
[1750317476030,6.63898572,104910.0,104900.0,0.0627]
[1750317478116,6.6300412,104910.0,104900.0,0.0627]
[1750317478328,6.63898548,104910.0,104900.0,0.0627]
[1750317478945,6.44430548,104910.0,104900.0,0.0627]
[1750317479181,6.34806372,104910.0,104900.0,0.0627]
[1750317479421,6.50298372,104910.0,104900.0,0.0627]
[1750317479867,6.50298347,104910.0,104900.0,0.0627]
[1750317480508,5.99726105,104910.0,104900.0,0.27242325]
[1750317480757,5.99726105,104910.0,104900.0,0.27242343]
[1750317481000,6.35759517,104910.0,104900.0,0.27242343]
[1750317481206,6.38621597,104910.0,104900.0,0.28195613]
[1750317481426,6.02588185,104910.0,104900.0,0.27242343]
[1750317481646,6.02588185,104910.0,104900.0,0.30102063]
[1750317481647,0.44384279,104910.0,104900.0,0.30102063]
[1750317482072,0.77428512,104910.0,104900.0,0.30102063]
[1750317482483,0.76475209,104910.0,104900.0,0.30102063]
[1750317482723,0.77428388,104910.0,104900.0,0.30102063]
[1750317483787,0.41394976,104910.0,104900.0,0.30102063]
[1750317484009,0.77428388,104910.0,104900.0,0.30102063]
[1750317485354,0.77427506,104910.0,104900.0,0.30102063]
[1750317485743,0.77427506,104910.0,104900.0,0.59252063]
[1750317485744,0.37581504,104910.0,104900.0,0.59252063]
[1750317485939,0.004,104910.0,104900.0,0.66135475]
[1750317486165,0.004,104910.0,104900.0,1.12575056]
[1750317486357,0.37939144,104940.0,104930.0,0.28119263]
[1750317486698,0.38767694,104950.0,104940.0,0.27134296]
[1750317486911,1.31157869,104950.0,104940.0,0.27134296]
[1750317487336,0.96205089,104950.0,104940.0,0.27134314]
[1750317487545,1.29252282,104950.0,104940.0,0.27134314]
[1750317488211,1.29252268,104950.0,104940.0,0.27134314]
[1750317488442,1.28299434,104950.0,104940.0,0.0617]
[1750317488665,1.28299434,104950.0,104940.0,0.07122925]
[1750317488882,0.92234185,104950.0,104940.0,0.07122925]
[1750317489602,0.89949743,104950.0,104940.0,0.07122925]
[1750317490940,0.89058268,104950.0,104940.0,0.28087257]
[1750317491154,0.89948467,104950.0,104940.0,0.29040155]
[1750317491667,0.89058268,104950.0,104940.0,0.29040155]
[1750317493147,0.89058268,104950.0,104940.0,0.28087257]
[1750317494115,0.89058268,104950.0,104940.0,0.29993044]
[1750317494326,0.89058268,104950.0,104940.0,0.29040155]
[1750317494543,0.87406008,104950.0,104940.0,0.29040155]
[1750317496850,0.88358833,104950.0,104940.0,0.29993044]
[1750317500421,0.88358833,104950.0,104940.0,0.29040155]
[1750317501030,0.88358833,104950.0,104940.0,0.29993044]
[1750317501868,0.89247195,104950.0,104940.0,0.29993044]
[1750317504098,0.89247195,104950.0,104940.0,0.2713435]
[1750317505476,0.91523536,104950.0,104940.0,0.2713435]
[1750317506587,0.91523536,104950.0,104940.0,0.0617]
[1750317506805,0.90570711,104950.0,104940.0,0.0617]
[1750317508126,0.8968219,104950.0,104940.0,0.0617]
[1750317508349,0.90571464,104950.0,104940.0,0.0617]
[1750317511094,1.2657371,104950.0,104940.0,0.0617]
[1750317512250,1.29359448,104950.0,104940.0,0.0617]
[1750317512495,1.39050712,104950.0,104940.0,0.0617]
[1750317512675,1.31217909,104950.0,104940.0,0.0617]
[1750317514104,1.31225859,104950.0,104940.0,0.0617]
[1750317514510,1.31225832,104950.0,104940.0,0.0617]
[1750317515446,1.35039345,104950.0,104940.0,0.0617]
[1750317516547,1.32177265,104950.0,104940.0,0.0617]
[1750317516987,1.32177895,104950.0,104940.0,0.0617]
[1750317517289,1.35038206,104950.0,104940.0,0.0617]
[1750317518634,1.35038206,104950.0,104940.0,0.25228509]
[1750317518853,0.63036034,104950.0,104940.0,0.26181434]
[1750317519113,1.35038206,104950.0,104940.0,0.07122925]
[1750317519346,1.31224693,104950.0,104940.0,0.26181434]
[1750317520004,1.31224655,104950.0,104940.0,0.0617]
[1750317521312,0.59222483,104950.0,104940.0,0.0617]
[1750317521544,1.31224655,104950.0,104940.0,0.0617]
[1750317524512,1.31224641,104950.0,104940.0,0.0617]
[1750317524731,1.30330752,104950.0,104940.0,0.0617]
[1750317524961,1.31224579,104950.0,104940.0,0.0617]
[1750317525649,1.30330728,104950.0,104940.0,0.0617]
[1750317525857,1.31224543,104950.0,104940.0,0.0617]
[1750317528557,1.31224552,104950.0,104940.0,0.0617]
[1750317529210,1.3122457,104950.0,104940.0,0.0617]
[1750317531445,1.30330737,104950.0,104940.0,0.0617]
[1750317531676,1.31224569,104950.0,104940.0,0.0617]
[1750317534385,1.31224665,104950.0,104940.0,0.0617]
[1750317537410,1.31224687,104950.0,104940.0,0.0617]
[1750317540385,1.31224685,104950.0,104940.0,0.0617]
[1750317542848,1.31224759,104950.0,104940.0,0.0617]
[1750317543143,1.30330872,104950.0,104940.0,0.0617]
[1750317543365,1.31224759,104950.0,104940.0,0.0617]
[1750317545182,0.07818154,104950.0,104940.0,0.28087194]
[1750317545400,0.37847725,104950.0,104940.0,0.29040055]
[1750317545644,0.38800496,104950.0,104940.0,0.29040055]
[1750317545852,0.36894973,104950.0,104940.0,0.29040055]
[1750317546339,0.37847744,104950.0,104940.0,0.29040055]
[1750317546559,0.36001086,104950.0,104940.0,0.29040055]
[1750317546819,5e-05,104960.0,104950.0,0.07312825]
[1750317547067,5e-05,104960.0,104950.0,0.74138522]
[1750317547291,5e-05,104960.0,104950.0,0.73900349]
[1750317547816,5e-05,104960.0,104950.0,0.57295263]
[1750317548836,5e-05,104960.0,104950.0,0.93296349]
[1750317549064,5e-05,104960.0,104950.0,0.57295263]
[1750317552987,5e-05,104960.0,104950.0,0.93272006]
[1750317553818,5e-05,104960.0,104950.0,0.57295263]
[1750317556894,0.35981743,104960.0,104950.0,0.57295263]
[1750317557118,5e-05,104960.0,104950.0,0.57295263]
[1750317557574,5e-05,104960.0,104950.0,0.36946492]
[1750317557803,0.38839837,104960.0,104950.0,0.57291263]
[1750317558053,0.37887112,104960.0,104950.0,0.57291263]
[1750317558264,0.38839837,104960.0,104950.0,0.57291263]
[1750317558698,0.37887103,104960.0,104950.0,0.57291263]
[1750317558975,0.3883981,104960.0,104950.0,0.57291263]
[1750317559195,0.37887103,104960.0,104950.0,0.57291263]
[1750317559623,0.39792535,104960.0,104950.0,0.43727087]
[1750317561117,0.02863067,104960.0,104950.0,0.43727087]
[1750317561333,0.39792526,104960.0,104950.0,0.43727087]
[1750317561888,0.40745251,104960.0,104950.0,0.43727087]
[1750317562323,0.39792526,104960.0,104950.0,0.43727087]
[1750317562613,0.39792526,104960.0,104950.0,0.72877087]
[1750317563092,0.40745251,104960.0,104950.0,0.72877087]
[1750317563093,0.39792526,104960.0,104950.0,0.72877087]
[1750317564795,0.3883981,104960.0,104950.0,0.72877087]
[1750317565231,0.39792544,104960.0,104950.0,0.72877087]
[1750317566335,0.40745287,104960.0,104950.0,0.72877087]
[1750317568931,0.76740594,104960.0,104950.0,0.72877087]
[1750317569631,0.76740594,104960.0,104950.0,0.57425087]
[1750317569854,0.95795472,104960.0,104950.0,0.72861078]
[1750317570069,0.94842801,104960.0,104950.0,0.71908298]
[1750317571600,0.93890112,104960.0,104950.0,0.71908316]
[1750317571816,0.92937405,104960.0,104950.0,0.71908316]
[1750317572895,0.92937405,104960.0,104950.0,0.72861114]
[1750317573221,0.92937405,104960.0,104950.0,0.57425114]
[1750317573427,0.92937405,104960.0,104950.0,0.72857114]
[1750317573842,0.92937405,104960.0,104950.0,0.57425114]
[1750317574058,1.26937405,104960.0,104950.0,0.54566693]
[1750317574258,1.27829039,104960.0,104950.0,0.70995527]
[1750317574502,1.3011416,104960.0,104950.0,0.70995527]
[1750317574713,1.3011416,104960.0,104950.0,0.71948352]
[1750317574916,1.3011416,104960.0,104950.0,0.72901168]
[1750317575451,0.5814211,104960.0,104950.0,0.72901168]
[1750317575681,1.3011416,104960.0,104950.0,0.72901168]
[1750317576343,1.3011416,104960.0,104950.0,0.73853975]
[1750317576651,1.30115254,104960.0,104950.0,0.73853975]
[1750317576973,1.2916252,104960.0,104950.0,0.3245]
[1750317577173,1.2916252,104960.0,104950.0,0.47922]
[1750317577818,1.40562659,104960.0,104950.0,0.44622]
[1750317579078,0.58975687,104960.0,104950.0,0.44622]
[1750317579272,1.30947737,104960.0,104950.0,0.44622]
[1750317579515,1.30946866,104960.0,104950.0,0.44622]
[1750317580301,1.30946866,104960.0,104950.0,0.18702]
[1750317580986,1.2916215,104960.0,104950.0,0.18702]
[1750317581131,1.30946838,104960.0,104950.0,0.18702]
[1750317581854,1.2916215,104960.0,104950.0,0.18702]
[1750317582418,1.2916215,104960.0,104950.0,0.21762]
[1750317583049,1.2916215,104960.0,104950.0,0.42724352]
[1750317583432,1.31067546,104960.0,104950.0,0.43677159]
[1750317583652,1.1105988,104960.0,104950.0,0.45582728]
[1750317583936,1.12965393,104960.0,104950.0,0.45582728]
[1750317584352,1.32972996,104960.0,104950.0,0.45582746]
[1750317584783,1.31067609,104960.0,104950.0,0.43677159]
[1750317584995,1.30114868,104960.0,104950.0,0.43677159]
[1750317585287,1.30115007,104960.0,104950.0,0.43677159]
[1750317585538,1.30115007,104960.0,104950.0,0.44629957]
[1750317585741,1.30115007,104960.0,104950.0,0.45582746]
[1750317586601,1.30115007,104960.0,104950.0,0.44629957]
[1750317586917,1.30115007,104960.0,104950.0,0.43677159]
[1750317587573,1.29222526,104960.0,104950.0,0.43677159]
[1750317590479,1.29222526,104960.0,104950.0,0.44629957]
[1750317592840,1.29222526,104960.0,104950.0,0.45582746]
[1750317593393,1.29222526,104960.0,104950.0,0.44629957]
[1750317594653,1.29222526,104960.0,104950.0,0.43677159]
[1750317595394,1.29222526,104960.0,104950.0,0.22770834]
[1750317595630,1.28269792,104960.0,104950.0,0.22770834]
[1750317595844,1.28269792,104960.0,104950.0,0.21818]
[1750317597222,1.28269792,104960.0,104950.0,0.0629]
[1750317597451,1.28269792,104960.0,104950.0,0.18758]
[1750317597873,1.28269792,104960.0,104950.0,0.0323]
[1750317598087,1.28269792,104960.0,104950.0,0.18758]
[1750317602233,1.37884714,104960.0,104950.0,0.15528]
[1750317602453,1.28269792,104960.0,104950.0,0.15528]
[1750317602658,0.94264792,104960.0,104950.0,0.15528]
[1750317603940,0.94264792,104960.0,104950.0,0.18778]
[1750317604589,0.94264792,104960.0,104950.0,0.21818]
[1750317605030,0.9605187,104960.0,104950.0,0.21818]
[1750317607190,0.96944662,104960.0,104950.0,0.21818]
[1750317607669,1.30944662,104960.0,104950.0,0.0629]
[1750317607906,1.3552612,104960.0,104950.0,0.0629]
[1750317609443,1.30944662,104960.0,104950.0,0.0629]
[1750317609882,1.28264792,104960.0,104950.0,0.0629]
[1750317610109,1.30945646,104960.0,104950.0,0.0629]
[1750317612692,1.2915841,104960.0,104950.0,0.0629]
[1750317612905,1.30945645,104960.0,104950.0,0.0629]
[1750317613962,1.38183736,104960.0,104950.0,0.0629]
[1750317614407,0.20009527,104950.0,104940.0,0.69914489]
[1750317614618,0.60127098,104950.0,104940.0,0.7182033]
[1750317615350,0.60127098,104950.0,104940.0,0.72773237]
[1750317615797,0.60127098,104950.0,104940.0,0.44023237]
[1750317617178,0.60127098,104950.0,104940.0,0.44976135]
[1750317618730,0.60127116,104950.0,104940.0,0.44976135]
[1750317621213,0.60127129,104950.0,104940.0,0.44976135]
[1750317621431,0.60127129,104950.0,104940.0,0.44820135]
[1750317622913,0.60127129,104950.0,104940.0,0.45773024]
[1750317624013,0.60127228,104950.0,104940.0,0.45773024]
[1750317624228,0.60127228,104950.0,104940.0,0.44820135]
[1750317624647,0.60127228,104950.0,104940.0,0.45773024]
[1750317624878,0.60127228,104950.0,104940.0,0.45772979]
[1750317625138,0.96113253,104950.0,104940.0,0.0661]
[1750317625356,1.06563108,104950.0,104940.0,0.22086]
[1750317625783,0.96948186,104950.0,104940.0,0.22086]
[1750317626885,0.9694839,104950.0,104940.0,0.22086]
[1750317629283,0.9694839,104950.0,104940.0,0.42097416]
[1750317629493,0.60962365,104950.0,104940.0,0.43050305]
[1750317629716,0.61915172,104950.0,104940.0,0.43050305]
[1750317629971,0.25929147,104950.0,104940.0,0.44003176]
[1750317630199,0.61915172,104950.0,104940.0,0.44003176]
[1750317630661,0.60127298,104950.0,104940.0,0.44003176]
[1750317631851,0.60127298,104950.0,104940.0,0.43050305]
[1750317632339,0.60127298,104950.0,104940.0,0.42097416]
[1750317632581,0.60127094,104950.0,104940.0,0.42097416]
[1750317633855,0.60127094,104950.0,104940.0,0.43050314]
[1750317634083,0.24141069,104950.0,104940.0,0.43050314]
[1750317634307,0.60127094,104950.0,104940.0,0.43050314]
[1750317635256,0.59174287,104950.0,104940.0,0.4305035]
[1750317635483,0.59174246,104950.0,104940.0,0.4305035]
[1750317635702,0.59174246,104950.0,104940.0,0.44003257]
[1750317637190,0.24141028,104950.0,104940.0,0.45909026]
[1750317637413,0.60127053,104950.0,104940.0,0.45909026]
[1750317638233,0.60127041,104950.0,104940.0,0.45909026]
[1750317638461,0.05084323,104950.0,104940.0,0.4590898]
[1750317638691,0.40690825,104950.0,104940.0,0.4590898]
[1750317638937,0.42975946,104950.0,104940.0,0.4590898]
[1750317639317,0.39164709,104950.0,104940.0,0.4590898]
[1750317639542,0.43928608,104950.0,104940.0,0.7505898]
[1750317639974,0.42975792,104950.0,104940.0,0.7505898]
[1750317640426,0.43928608,104950.0,104940.0,0.7505898]
[1750317640649,0.43928681,104950.0,104940.0,0.7505898]
[1750317641153,0.07942656,104950.0,104940.0,0.7505898]
[1750317641361,0.40690735,104950.0,104940.0,0.7505898]
[1750317641577,0.4202304,104950.0,104940.0,0.7505898]
[1750317642204,0.42975856,104950.0,104940.0,0.7505898]
[1750317642418,0.43928681,104950.0,104940.0,0.7505898]
[1750317643418,0.42975856,104950.0,104940.0,0.7505898]
[1750317643851,0.4202304,104950.0,104940.0,0.7505898]
[1750317644097,0.06989831,104950.0,104940.0,0.7505898]
[1750317644342,0.40690735,104950.0,104940.0,0.7505898]
[1750317644548,0.42975856,104950.0,104940.0,0.7505898]
[1750317644772,0.4202304,104950.0,104940.0,0.7505898]
[1750317645100,0.42023158,104950.0,104940.0,0.7505898]
[1750317645369,0.42975965,104950.0,104940.0,0.7505898]
[1750317645590,0.42023158,104950.0,104940.0,0.7505898]
[1750317647097,0.42975977,104950.0,104940.0,0.7505898]
[1750317647293,0.43928793,104950.0,104940.0,0.7505898]
[1750317648181,0.62985486,104950.0,104940.0,0.56724332]
[1750317648390,1.06680927,104950.0,104940.0,0.72228332]
[1750317648598,1.0572812,104950.0,104940.0,0.70322509]
[1750317649025,1.07515606,104950.0,104940.0,0.70322509]
[1750317649229,1.0572812,104950.0,104940.0,0.70322509]
[1750317649455,0.96113198,104950.0,104940.0,0.70322509]
[1750317649660,0.96113198,104950.0,104940.0,0.71275425]
[1750317649874,0.95160382,104950.0,104940.0,0.7222835]
[1750317652653,0.95163299,104950.0,104940.0,0.7222835]
[1750317653105,0.96950793,104950.0,104940.0,0.7222835]
[1750317653342,0.96950793,104950.0,104940.0,0.51264]
[1750317653578,0.95997968,104950.0,104940.0,0.51264]
[1750317655486,0.95998122,104950.0,104940.0,0.51264]
[1750317656341,1.03915456,104950.0,104940.0,0.51264]
[1750317657013,0.95998122,104950.0,104940.0,0.51264]
[1750317657278,0.95998122,104950.0,104940.0,0.22114]
[1750317657757,0.95998122,104950.0,104940.0,0.0356]
[1750317657985,0.95998122,104950.0,104940.0,0.19056]
[1750317658212,1.31070603,104950.0,104940.0,0.19056]